[Event "NJSK 2023 Meisjes C"]
[Site "Almelo, Netherlands"]
[Date "2023.05.01"]
[Round "2.4"]
[White "Grigoriu, Eva"]
[Black "Koorevaar, Sarah-Joy"]
[Result "1/2-1/2"]
[TimeControl "90min/40moves + 30min + 30sec/move"]
[WhiteElo "1045"]
[BlackElo "1067"]

1. c4 {[%clk 01:30:59]} {[%emt 00:00:01]} e5 {[%clk 01:30:51]} {[%emt
00:00:10]} 2. Nc3 {[%clk 01:31:26]} {[%emt 00:00:03]} Nf6 {[%clk 01:31:08]}
{[%emt 00:00:12]} 3. g3 {[%clk 01:31:53]} {[%emt 00:00:04]} Nc6 {[%clk
01:31:13]} {[%emt 00:00:25]} 4. Bg2 {[%clk 01:32:18]} {[%emt 00:00:03]} Bc5
{[%clk 01:31:27]} {[%emt 00:00:17]} 5. e3 {[%clk 01:32:38]} {[%emt 00:00:11]}
O-O {[%clk 01:31:40]} {[%emt 00:00:17]} 6. Nge2 {[%clk 01:33:02]} {[%emt
00:00:05]} Re8 {[%clk 01:31:13]} {[%emt 00:00:57]} 7. O-O {[%clk 01:33:20]}
{[%emt 00:00:12]} e4 {[%clk 01:31:19]} {[%emt 00:00:25]} 8. Qc2 {[%clk
01:33:14]} {[%emt 00:00:35]} Nb4 {[%clk 01:29:37]} {[%emt 00:02:12]} 9. Qb1
{[%clk 01:32:31]} {[%emt 00:01:12]} Nd3 {[%clk 01:29:07]} {[%emt 00:01:01]} 10.
Nxe4 {[%clk 01:32:07]} {[%emt 00:00:53]} Nxe4 {[%clk 01:26:51]} {[%emt
00:02:47]} 11. Qxd3 {[%clk 01:32:20]} {[%emt 00:00:15]} Nf6 {[%clk 01:26:59]}
{[%emt 00:00:24]} 12. a3 {[%clk 01:32:21]} {[%emt 00:00:30]} Bd6 {[%clk
01:25:29]} {[%emt 00:02:00]} 13. b4 {[%clk 01:32:34]} {[%emt 00:00:17]} Be5
{[%clk 01:25:30]} {[%emt 00:00:29]} 14. Rb1 {[%clk 01:32:50]} {[%emt 00:00:14]}
d5 {[%clk 01:18:44]} {[%emt 00:07:16]} 15. c5 {[%clk 01:32:58]} {[%emt
00:00:22]} g6 {[%clk 01:17:11]} {[%emt 00:02:02]} 16. f4 {[%clk 01:33:06]}
{[%emt 00:00:22]} Bf5 {[%clk 01:17:08]} {[%emt 00:00:33]} 17. e4 {[%clk
01:32:43]} {[%emt 00:00:53]} Nxe4 {[%clk 01:14:15]} {[%emt 00:03:23]} 18. fxe5
{[%clk 01:31:38]} {[%emt 00:01:35]} Nxc5 {[%clk 01:09:52]} {[%emt 00:04:53]} 19.
Qc3 {[%clk 01:31:30]} {[%emt 00:00:37]} Na4 {[%clk 01:07:37]} {[%emt 00:02:45]}
20. Qb3 {[%clk 01:29:35]} {[%emt 00:02:25]} Bxb1 {[%clk 01:07:44]} {[%emt
00:00:23]} 21. Bxd5 {[%clk 01:27:42]} {[%emt 00:02:23]} Bf5 {[%emt 00:14:22]}
22. Bxf7+ {[%clk 01:26:58]} {[%emt 00:01:12]} Kg7 {[%clk 00:54:03]} {[%emt
00:00:22]} 23. Bxe8 {[%clk 01:27:09]} {[%emt 00:00:19]} Qxe8 {[%clk 00:54:20]}
{[%emt 00:00:13]} 24. Nd4 {[%clk 01:24:44]} {[%emt 00:02:55]} Qd7 {[%clk
00:47:45]} {[%emt 00:07:05]} 25. Nxf5+ {[%clk 01:23:51]} {[%emt 00:01:23]} gxf5
{[%clk 00:48:04]} {[%emt 00:00:11]} 26. e6 {[%clk 01:23:20]} {[%emt 00:01:00]}
Qd4+ {[%clk 00:45:08]} {[%emt 00:03:26]} 27. Kg2 {[%clk 01:21:23]} {[%emt
00:02:15]} Qe4+ {[%clk 00:42:28]} {[%emt 00:03:21]} 28. Rf3 {[%clk 01:17:39]}
{[%emt 00:04:15]} Qe2+ {[%clk 00:42:13]} {[%emt 00:00:44]} 29. Rf2 {[%clk
01:17:57]} {[%emt 00:00:12]} Qe4+ {[%clk 00:42:34]} {[%emt 00:00:06]} 30. Kg1
{[%clk 01:17:40]} {[%emt 00:00:50]} b5 {[%clk 00:42:15]} {[%emt 00:00:50]} 31.
d3 {[%clk 01:15:23]} {[%emt 00:02:47]} Qd4 {[%clk 00:39:10]} {[%emt 00:03:35]}
32. Kg2 {[%clk 01:13:38]} {[%emt 00:02:14]} Kf6 {[%emt 00:05:02]} 33. h4 {[%clk
01:10:26]} Re8 {[%clk 00:35:03]} {[%emt 00:03:47]} 34. Bg5+ {[%clk 01:10:37]}
{[%emt 00:00:19]} Kg6 {[%clk 00:34:48]} {[%emt 00:00:45]} 35. e7 {[%clk
01:10:35]} {[%emt 00:00:33]} Qe5 {[%clk 00:32:29]} {[%emt 00:02:48]} 36. Qb1
{[%clk 01:08:43]} {[%emt 00:02:22]} h6 {[%clk 00:31:02]} {[%emt 00:01:57]} 37.
Bd2 {[%clk 01:05:23]} {[%emt 00:03:49]} Rxe7 {[%clk 00:28:32]} {[%emt
00:03:02]} 38. Qc1 {[%clk 01:04:46]} {[%emt 00:01:06]} Qd5+ {[%clk 00:20:38]}
{[%emt 00:08:24]} 39. Kh2 {[%clk 01:04:04]} {[%emt 00:01:12]} Rh7 {[%clk
00:18:48]} {[%emt 00:02:21]} 40. Bxh6 {[%clk 01:03:24]} {[%emt 00:01:10]} Qd8
{[%clk 00:16:21]} {[%emt 00:02:56]} 41. Qc6+ {[%clk 01:02:53]} {[%emt
00:01:02]} Qf6 {[%clk 00:14:40]} {[%emt 00:02:11]} 42. Qxb5 {[%clk 01:01:35]}
{[%emt 00:01:48]} Nc3 {[%clk 00:14:39]} {[%emt 00:00:31]} 43. Qe8+ {[%clk
01:01:04]} {[%emt 00:01:01]} Qf7 {[%clk 00:12:43]} {[%emt 00:02:26]} 44. Qxf7+
{[%clk 01:00:37]} {[%emt 00:00:57]} Rxf7 {[%clk 00:12:17]} {[%emt 00:00:56]} 45.
Bf4 {[%clk 01:00:54]} {[%emt 00:00:12]} Rd7 {[%clk 00:10:21]} {[%emt 00:02:27]}
46. Rf3 {[%clk 00:59:02]} {[%emt 00:02:18]} Na4 {[%clk 00:08:21]} {[%emt
00:02:34]} 47. Bc1 {[%clk 00:58:40]} {[%emt 00:00:51]} a6 {[%clk 00:06:51]}
{[%emt 00:02:01]} 48. Re3 {[%clk 00:58:15]} {[%emt 00:00:53]} Rd6 {[%clk
00:06:22]} {[%emt 00:01:00]} 49. Kg2 {[%clk 00:57:13]} {[%emt 00:01:32]} c5
{[%clk 00:05:12]} {[%emt 00:01:42]} 50. Kf3 {[%clk 00:56:52]} {[%emt 00:00:50]}
Kf6 {[%clk 00:02:44]} {[%emt 00:02:59]} 51. Ke2 {[%clk 00:56:34]} {[%emt
00:00:47]} Nc3+ {[%clk 00:01:48]} {[%emt 00:01:28]} 52. Kd2 {[%clk 00:56:32]}
{[%emt 00:00:30]} cxb4 {[%clk 00:00:42]} {[%emt 00:01:38]} 53. axb4 {[%clk
00:56:31]} {[%emt 00:00:31]} Nb5 {[%clk 00:29:58]} {[%emt 00:01:14]} 54. Bb2+
{[%clk 01:25:55]} {[%emt 00:01:05]} Kg6 {[%clk 00:30:06]} {[%emt 00:00:22]} 55.
Ke2 {[%clk 01:24:48]} {[%emt 00:01:36]} Kh5 {[%clk 00:29:12]} {[%emt 00:01:24]}
56. Be5 {[%clk 01:24:25]} {[%emt 00:00:54]} Rd5 {[%clk 00:27:45]} {[%emt
00:01:57]} 57. Kf3 {[%clk 01:23:23]} {[%emt 00:01:31]} Nd4+ {[%clk 00:26:56]}
{[%emt 00:01:20]} 58. Kf4 {[%clk 01:22:03]} {[%emt 00:01:48]} Kg6 {[%clk
00:26:06]} {[%emt 00:01:22]} 59. g4 {[%clk 01:21:44]} {[%emt 00:00:43]} fxg4
{[%clk 00:25:07]} {[%emt 00:01:34]} 60. Kxg4 {[%clk 01:22:09]} {[%emt
00:00:05]} Nc2 {[%clk 00:23:22]} {[%emt 00:02:16]} 61. Re4 {[%clk 01:21:48]}
{[%emt 00:00:51]} Rxd3 {[%clk 00:22:28]} {[%emt 00:01:24]} 62. Bf4 {[%clk
01:20:54]} {[%emt 00:01:23]} Rb3 {[%clk 00:21:28]} {[%emt 00:01:31]} 63. Re6+
{[%clk 01:21:03]} {[%emt 00:00:21]} Kh7 {[%clk 00:20:42]} {[%emt 00:01:17]} 64.
Rxa6 {[%clk 01:21:24]} {[%emt 00:00:08]} Rxb4 {[%clk 00:21:06]} {[%emt
00:00:06]} 65. Rf6 {[%clk 01:21:16]} {[%emt 00:00:39]} Kg7 {[%clk 00:19:03]}
{[%emt 00:02:32]} 66. Rf5 {[%clk 01:21:15]} {[%emt 00:00:31]} Ne3+ {[%clk
00:19:04]} {[%emt 00:00:28]} 67. Kg5 {[%clk 01:21:25]} {[%emt 00:00:21]} Nxf5
{[%clk 00:19:14]} {[%emt 00:00:20]} 68. Kxf5 {[%clk 01:21:42]} {[%emt
00:00:13]} Rb1 {[%clk 00:18:58]} {[%emt 00:00:47]} 69. h5 {[%clk 01:22:02]}
{[%emt 00:00:10]} Rh1 {[%clk 00:18:52]} {[%emt 00:00:36]} 70. h6+ {[%clk
01:22:18]} {[%emt 00:00:14]} Rxh6 {[%emt 00:00:13]} 71. Bxh6+ {[%clk 01:22:32]}
{[%emt 00:00:13]} Kxh6 {[%clk 00:19:39]} {[%emt 00:00:03]} 72. Ke4 {[%emt
00:00:17]} 1/2-1/2

[Event "NJSK 2023 Meisjes C"]
[Site "Almelo, Netherlands"]
[Date "2023.05.01"]
[Round "2.5"]
[White "Hardeman, Imara"]
[Black "Liu, Chia-Yun"]
[Result "0-1"]
[TimeControl "90min/40moves + 30min + 30sec/move"]
[WhiteElo "920"]
[BlackElo "1470"]

1. e4 {[%clk 01:30:59]} e5 {[%clk 01:30:55]} {[%emt 00:00:05]} 2. Nf3 {[%clk
01:31:26]} {[%emt 00:00:04]} Nc6 {[%clk 01:31:17]} {[%emt 00:00:07]} 3. c3
{[%clk 01:31:53]} {[%emt 00:00:03]} d5 {[%clk 01:31:26]} {[%emt 00:00:21]} 4.
Qa4 {[%clk 01:32:16]} {[%emt 00:00:09]} f6 {[%clk 01:31:42]} {[%emt 00:00:14]}
5. Bb5 {[%clk 01:30:51]} {[%emt 00:01:55]} Nge7 {[%clk 01:31:05]} {[%emt
00:01:06]} 6. O-O {[%clk 01:27:54]} {[%emt 00:03:27]} Bd7 {[%clk 01:17:40]}
{[%emt 00:13:54]} 7. Re1 {[%clk 01:22:39]} {[%emt 00:05:46]} a6 {[%clk
01:14:39]} {[%emt 00:03:31]} 8. Be2 {[%clk 01:17:58]} {[%emt 00:05:10]} Nd4
{[%clk 01:08:25]} {[%emt 00:06:44]} 9. Qd1 {[%clk 01:16:23]} {[%emt 00:02:05]}
Nxe2+ {[%clk 01:01:44]} {[%emt 00:07:11]} 10. Qxe2 {[%clk 01:15:10]} {[%emt
00:01:43]} dxe4 {[%clk 01:01:05]} {[%emt 00:01:08]} 11. Qxe4 {[%emt 00:00:48]}
Bc6 {[%clk 01:00:22]} {[%emt 00:01:10]} 12. Qe2 {[%clk 01:14:27]} {[%emt
00:00:57]} Qd7 {[%clk 00:59:18]} {[%emt 00:01:36]} 13. Rd1 {[%clk 01:11:52]}
{[%emt 00:03:05]} O-O-O {[%clk 00:54:31]} {[%emt 00:05:16]} 14. d4 {[%emt
00:03:22]} e4 {[%clk 00:48:06]} {[%emt 00:06:52]} 15. Nfd2 {[%clk 01:09:04]}
{[%emt 00:00:29]} f5 {[%clk 00:46:27]} {[%emt 00:02:09]} 16. Nc4 {[%clk
01:08:05]} {[%emt 00:01:30]} Ng6 {[%clk 00:42:44]} {[%emt 00:04:12]} 17. Bg5
{[%clk 01:07:22]} {[%emt 00:01:13]} Be7 {[%clk 00:41:48]} {[%emt 00:01:27]} 18.
Bxe7 {[%clk 01:07:28]} {[%emt 00:00:25]} Qxe7 {[%clk 00:41:44]} {[%emt
00:00:33]} 19. Nbd2 {[%clk 00:58:31]} {[%emt 00:09:27]} Qg5 {[%clk 00:40:03]}
{[%emt 00:02:11]} 20. Qe3 {[%clk 00:55:41]} {[%emt 00:03:20]} Nf4 {[%clk
00:38:05]} {[%emt 00:02:27]} 21. g3 {[%clk 00:53:48]} {[%emt 00:02:23]} Nh3+
{[%clk 00:37:06]} {[%emt 00:01:29]} 22. Kf1 {[%clk 00:52:45]} {[%emt 00:01:34]}
f4 {[%clk 00:31:20]} {[%emt 00:06:16]} 23. gxf4 {[%clk 00:49:24]} {[%emt
00:03:51]} Qg1+ {[%clk 00:29:16]} {[%emt 00:02:34]} 24. Ke2 {[%clk 00:47:18]}
{[%emt 00:02:36]} Qg4+ {[%clk 00:29:04]} {[%emt 00:00:42]} 25. Kf1 {[%clk
00:46:33]} {[%emt 00:01:15]} Nxf4 {[%clk 00:26:25]} {[%emt 00:03:09]} 26. Qg3
{[%clk 00:44:48]} {[%emt 00:02:15]} Qe2+ {[%clk 00:24:28]} {[%emt 00:02:27]} 27.
Kg1 {[%clk 00:45:05]} {[%emt 00:00:13]} Nd3 {[%clk 00:23:23]} {[%emt 00:01:36]}
28. Qe3 {[%clk 00:42:16]} {[%emt 00:03:18]} Qg4+ {[%clk 00:22:04]} {[%emt
00:01:49]} 29. Qg3 {[%clk 00:42:24]} {[%emt 00:00:22]} Qh5 {[%clk 00:17:33]}
{[%emt 00:05:01]} 30. h3 {[%clk 00:31:45]} {[%emt 00:11:10]} Kb8 {[%clk
00:15:17]} {[%emt 00:02:47]} 31. Qg4 {[%clk 00:31:32]} {[%emt 00:00:43]} Qd5
{[%clk 00:12:32]} {[%emt 00:03:15]} 32. Qg3 {[%clk 00:27:51]} {[%emt 00:04:10]}
e3 {[%clk 00:11:22]} {[%emt 00:01:40]} 33. Nxe3 {[%clk 00:26:59]} {[%emt
00:01:22]} Qh1# {[%clk 00:11:41]} {[%emt 00:00:11]} 0-1

[Event "NJSK 2023 Meisjes C"]
[Site "Almelo, Netherlands"]
[Date "2023.05.01"]
[Round "2.6"]
[White "Ganeshram, Niranjana"]
[Black "Regterschot, Frederieke"]
[Result "0-1"]
[TimeControl "90min/40moves + 30min + 30sec/move"]
[WhiteElo "775"]
[BlackElo "966"]

1. c4 {[%clk 01:30:59]} {[%emt 00:00:01]} e6 {[%clk 01:30:52]} {[%emt
00:00:09]} 2. Nc3 {[%clk 01:31:19]} {[%emt 00:00:08]} Nf6 {[%clk 01:31:14]}
{[%emt 00:00:08]} 3. g3 {[%clk 01:31:36]} {[%emt 00:00:13]} d5 {[%clk
01:31:29]} {[%emt 00:00:16]} 4. d3 {[%clk 01:31:59]} {[%emt 00:00:06]} Nc6
{[%clk 01:31:19]} {[%emt 00:00:41]} 5. Bg2 {[%clk 01:32:23]} {[%emt 00:00:06]}
Bb4 {[%clk 01:30:25]} {[%emt 00:01:24]} 6. e4 {[%clk 01:32:35]} {[%emt
00:00:17]} d4 {[%clk 01:30:32]} {[%emt 00:00:24]} 7. a3 {[%clk 01:32:32]}
{[%emt 00:00:33]} Ba5 {[%clk 01:29:39]} {[%emt 00:01:23]} 8. b4 {[%clk
01:32:46]} {[%emt 00:00:16]} Nxb4 {[%clk 01:28:01]} {[%emt 00:02:07]} 9. axb4
{[%clk 01:33:05]} {[%emt 00:00:11]} Bxb4 {[%clk 01:28:21]} {[%emt 00:00:11]} 10.
Qa4+ {[%clk 01:33:11]} {[%emt 00:00:23]} c6 {[%clk 01:27:47]} {[%emt 00:01:05]}
11. Qxb4 {[%clk 01:33:23]} {[%emt 00:00:18]} dxc3 {[%clk 01:28:01]} {[%emt
00:00:16]} 12. Qxc3 {[%clk 01:33:34]} {[%emt 00:00:18]} h6 {[%clk 01:28:07]}
{[%emt 00:00:25]} 13. Nf3 {[%clk 01:33:56]} {[%emt 00:00:08]} O-O {[%clk
01:28:12]} {[%emt 00:00:25]} 14. O-O {[%clk 01:34:12]} {[%emt 00:00:13]} a5
{[%clk 01:27:35]} {[%emt 00:01:08]} 15. e5 {[%clk 01:33:37]} {[%emt 00:01:04]}
Nd7 {[%clk 01:27:23]} {[%emt 00:00:41]} 16. Nh4 {[%clk 01:30:38]} {[%emt
00:03:29]} Nc5 {[%clk 01:27:23]} {[%emt 00:00:30]} 17. d4 {[%clk 01:30:34]}
{[%emt 00:00:34]} Nd7 {[%clk 01:27:15]} {[%emt 00:00:39]} 18. Qe3 {[%clk
01:29:20]} {[%emt 00:01:44]} Nb6 {[%clk 01:26:41]} {[%emt 00:01:04]} 19. c5
{[%clk 01:29:05]} {[%emt 00:00:45]} Nd5 {[%clk 01:27:03]} {[%emt 00:00:08]} 20.
Bxd5 {[%clk 01:29:04]} {[%emt 00:00:29]} exd5 {[%clk 01:27:25]} {[%emt
00:00:10]} 21. Ra3 {[%clk 01:27:47]} {[%emt 00:01:47]} b5 {[%clk 01:26:11]}
{[%emt 00:01:44]} 22. cxb6 {[%clk 01:27:58]} {[%emt 00:00:20]} Qxb6 {[%clk
01:26:33]} {[%emt 00:00:07]} 23. Qf4 {[%clk 01:27:44]} {[%emt 00:00:43]} a4
{[%clk 01:26:18]} {[%emt 00:00:47]} 24. Rf3 {[%clk 01:27:56]} {[%emt 00:00:17]}
Be6 {[%clk 01:26:37]} {[%emt 00:00:12]} 25. Rd1 {[%clk 01:27:27]} {[%emt
00:00:59]} Qb1 {[%clk 01:26:29]} {[%emt 00:00:38]} 26. Ng2 {[%clk 01:26:29]}
{[%emt 00:01:28]} a3 {[%clk 01:26:07]} {[%emt 00:00:53]} 27. Rxa3 {[%clk
01:20:31]} {[%emt 00:06:27]} Rxa3 {[%clk 01:25:49]} {[%emt 00:00:49]} 28. Ne3
{[%clk 01:20:36]} {[%emt 00:00:24]} Ra4 {[%clk 01:21:58]} {[%emt 00:04:21]} 29.
Qf3 {[%clk 01:19:07]} {[%emt 00:02:00]} Rb8 {[%clk 01:16:17]} {[%emt 00:06:10]}
30. Nf5 {[%clk 01:19:22]} {[%emt 00:00:16]} Qxf5 {[%clk 01:15:17]} {[%emt
00:01:29]} 31. Qc3 {[%clk 01:18:37]} {[%emt 00:01:15]} Rc4 {[%clk 01:14:51]}
{[%emt 00:00:57]} 32. Qa5 {[%clk 01:18:00]} {[%emt 00:01:06]} Rb1 {[%clk
01:14:09]} {[%emt 00:01:13]} 33. Qd2 {[%clk 01:17:18]} {[%emt 00:01:10]} Qe4
{[%clk 01:13:28]} {[%emt 00:01:13]} 34. Re1 {[%clk 01:14:12]} {[%emt 00:03:36]}
Qxe1+ {[%clk 01:12:43]} {[%emt 00:01:15]} 35. Qxe1 {[%clk 01:14:29]} {[%emt
00:00:12]} Rbxc1 {[%clk 01:13:01]} {[%emt 00:00:13]} 36. Qxc1 {[%clk 01:14:52]}
{[%emt 00:00:06]} Rxc1+ {[%clk 01:13:14]} {[%emt 00:00:18]} 37. Kg2 {[%clk
01:15:15]} {[%emt 00:00:07]} Rd1 {[%clk 01:13:35]} {[%emt 00:00:09]} 38. g4
{[%clk 01:15:36]} {[%emt 00:00:09]} Bxg4 {[%clk 01:13:53]} {[%emt 00:00:12]} 39.
f3 {[%clk 01:15:55]} {[%emt 00:00:11]} Rxd4 {[%clk 01:14:03]} {[%emt 00:00:20]}
40. fxg4 {[%clk 01:16:16]} {[%emt 00:00:08]} Rxg4+ {[%clk 01:14:22]} {[%emt
00:00:11]} 41. Kf3 {[%clk 01:16:20]} {[%emt 00:00:25]} Re4 {[%emt 00:00:26]} 42.
e6 {[%clk 01:16:39]} c5 {[%clk 01:14:37]} {[%emt 00:00:32]} 43. e7 {[%clk
01:17:00]} {[%emt 00:00:08]} c4 {[%clk 01:14:50]} {[%emt 00:00:17]} 44. e8=Q+
{[%emt 00:00:18]} Rxe8 {[%clk 01:14:51]} {[%emt 00:00:22]} 45. h4 {[%clk
01:17:45]} {[%emt 00:00:03]} c3 {[%clk 01:15:15]} {[%emt 00:00:07]} 46. h5
{[%clk 01:18:10]} {[%emt 00:00:04]} c2 {[%clk 01:15:31]} {[%emt 00:00:14]} 47.
Kf4 {[%clk 01:18:35]} {[%emt 00:00:06]} c1=Q+ {[%clk 01:15:44]} {[%emt
00:00:17]} 48. Kf3 {[%clk 01:19:00]} {[%emt 00:00:04]} Re4 {[%clk 01:15:56]}
{[%emt 00:00:17]} 49. Kf2 {[%clk 01:19:20]} {[%emt 00:00:11]} Qe1+ {[%clk
01:15:54]} {[%emt 00:00:33]} 50. Kg2 {[%clk 01:19:44]} {[%emt 00:00:05]} Re3
{[%clk 01:15:55]} {[%emt 00:00:30]} 51. Kh2 {[%clk 01:20:04]} {[%emt 00:00:08]}
d4 {[%clk 01:16:15]} {[%emt 00:00:12]} 52. Kg2 {[%clk 01:20:18]} {[%emt
00:00:16]} Rg3+ {[%clk 01:16:42]} {[%emt 00:00:04]} 53. Kh2 {[%clk 01:20:36]}
{[%emt 00:00:10]} Qg1# {[%clk 01:17:05]} {[%emt 00:00:08]} 0-1

[Event "NJSK 2023 Meisjes C"]
[Site "Almelo, Netherlands"]
[Date "2023.05.02"]
[Round "3.1"]
[White "Westerhof, Fleur"]
[Black "Fu, Janice"]
[Result "1/2-1/2"]
[TimeControl "90min/40moves + 30min + 30sec/move"]
[WhiteElo "1743"]
[BlackElo "1408"]

1. e4 {[%clk 01:30:56]} {[%emt 00:00:03]} e5 {[%clk 01:30:49]} {[%emt
00:00:11]} 2. Nf3 {[%clk 01:31:16]} {[%emt 00:00:10]} Nc6 {[%clk 01:30:57]}
{[%emt 00:00:23]} 3. d4 {[%clk 01:31:38]} {[%emt 00:00:08]} exd4 {[%clk
01:31:12]} {[%emt 00:00:15]} 4. Bc4 {[%clk 01:32:00]} {[%emt 00:00:07]} Nf6
{[%clk 01:30:49]} {[%emt 00:00:54]} 5. O-O {[%clk 01:32:17]} {[%emt 00:00:12]}
Be7 {[%clk 01:29:19]} {[%emt 00:02:00]} 6. Re1 {[%clk 01:23:50]} {[%emt
00:08:58]} d6 {[%clk 01:25:50]} {[%emt 00:03:59]} 7. Nxd4 {[%clk 01:20:43]}
{[%emt 00:03:37]} Ne5 {[%clk 01:22:15]} {[%emt 00:04:05]} 8. Bb3 {[%clk
01:12:02]} {[%emt 00:09:11]} O-O {[%clk 01:13:18]} {[%emt 00:09:26]} 9. f4
{[%clk 01:06:01]} {[%emt 00:06:32]} Ng6 {[%clk 00:57:17]} {[%emt 00:16:31]} 10.
h3 {[%clk 00:43:28]} {[%emt 00:23:03]} c5 {[%clk 00:49:04]} {[%emt 00:08:42]}
11. Nf3 {[%clk 00:40:32]} {[%emt 00:03:26]} Qb6 {[%clk 00:43:37]} {[%emt
00:05:57]} 12. c4 {[%clk 00:37:56]} {[%emt 00:03:07]} Rd8 {[%clk 00:33:16]}
{[%emt 00:10:51]} 13. Nc3 {[%clk 00:34:12]} {[%emt 00:04:14]} Bd7 {[%clk
00:26:32]} {[%emt 00:07:14]} 14. Qc2 {[%clk 00:29:16]} {[%emt 00:05:24]} Bc6
{[%clk 00:21:17]} {[%emt 00:05:45]} 15. Nd5 {[%clk 00:25:46]} {[%emt 00:04:01]}
Bxd5 {[%clk 00:18:32]} {[%emt 00:03:15]} 16. exd5 {[%clk 00:24:36]} {[%emt
00:01:40]} Nd7 {[%clk 00:17:23]} {[%emt 00:01:39]} 17. Bd2 {[%clk 00:18:53]}
{[%emt 00:06:12]} Bf6 {[%clk 00:15:45]} {[%emt 00:02:10]} 18. Re2 {[%clk
00:15:40]} {[%emt 00:03:43]} Re8 {[%clk 00:13:59]} {[%emt 00:02:15]} 19. Rae1
{[%clk 00:15:39]} {[%emt 00:00:31]} Rxe2 {[%clk 00:14:04]} {[%emt 00:00:25]} 20.
Rxe2 {[%clk 00:16:00]} {[%emt 00:00:09]} Bd4+ {[%clk 00:12:00]} {[%emt
00:02:35]} 21. Nxd4 {[%clk 00:11:25]} {[%emt 00:05:05]} cxd4 {[%clk 00:12:22]}
{[%emt 00:00:07]} 22. Qd3 {[%clk 00:10:29]} {[%emt 00:01:26]} Nf6 {[%clk
00:12:15]} {[%emt 00:00:38]} 23. Kh2 {[%clk 00:08:43]} {[%emt 00:02:15]} a5
{[%clk 00:11:42]} {[%emt 00:01:04]} 24. Bc1 {[%clk 00:06:56]} {[%emt 00:02:12]}
Rc8 {[%clk 00:10:42]} {[%emt 00:01:34]} 25. Re1 {[%clk 00:06:30]} {[%emt
00:00:56]} Re8 {[%clk 00:09:28]} {[%emt 00:01:46]} 26. Rxe8+ {[%clk 00:05:48]}
{[%emt 00:01:11]} Nxe8 {[%clk 00:09:53]} {[%emt 00:00:04]} 27. Ba4 {[%clk
00:05:56]} {[%emt 00:00:23]} Nf6 {[%clk 00:09:36]} {[%emt 00:00:46]} 28. Bb5
{[%clk 00:05:18]} {[%emt 00:01:08]} Nh5 {[%clk 00:07:23]} {[%emt 00:02:43]} 29.
g3 {[%clk 00:05:05]} {[%emt 00:00:43]} Qa7 {[%clk 00:06:01]} {[%emt 00:01:50]}
30. b3 {[%clk 00:04:34]} {[%emt 00:01:03]} b6 {[%clk 00:05:35]} {[%emt
00:00:56]} 31. Qxd4 {[%clk 00:04:06]} {[%emt 00:00:58]} Qe7 {[%clk 00:05:47]}
{[%emt 00:00:19]} 32. Qe3 {[%clk 00:04:05]} {[%emt 00:00:30]} Qf6 {[%clk
00:05:22]} {[%emt 00:00:56]} 33. Qe2 {[%clk 00:03:33]} {[%emt 00:01:02]} Qc3
{[%clk 00:04:53]} {[%emt 00:00:58]} 34. Qe3 {[%clk 00:02:58]} {[%emt 00:01:05]}
Qc2+ {[%clk 00:04:38]} {[%emt 00:00:46]} 35. Qd2 {[%clk 00:02:57]} {[%emt
00:00:30]} Qe4 {[%clk 00:04:53]} {[%emt 00:00:16]} 36. Bd7 {[%clk 00:02:28]}
{[%emt 00:00:58]} Nf6 {[%clk 00:04:30]} {[%emt 00:00:53]} 37. Bc8 {[%clk
00:02:30]} {[%emt 00:00:27]} Ne7 {[%clk 00:04:24]} {[%emt 00:00:38]} 38. Bb7
{[%clk 00:02:35]} {[%emt 00:00:22]} Nf5 {[%clk 00:04:20]} {[%emt 00:00:37]} 39.
Bc6 {[%clk 00:00:43]} {[%emt 00:02:22]} Nd4 {[%clk 00:04:42]} {[%emt 00:00:08]}
40. Qe3 {[%clk 00:00:42]} {[%emt 00:00:29]} Qc2+ {[%clk 00:04:53]} {[%emt
00:00:20]} 41. Kh1 {[%clk 00:00:41]} {[%emt 00:00:29]} Ne2 {[%clk 00:01:46]}
{[%emt 00:03:40]} 42. Bd2 {[%clk 00:29:22]} {[%emt 00:01:48]} Ne4 {[%clk
00:30:05]} {[%emt 00:02:12]} 1/2-1/2